fUST/lending_fUST_20250914
["ID","MTS","AMOUNT","RATE_DAILY","PERIOD"]
[385376447,1757799041995,-37226.46,0.00024657,3]
[385376448,1757799042004,-480.0,0.00024657,3]
[385376449,1757799042014,-1341.03,0.00024657,3]
[385376450,1757799042023,-480.0,0.00024657,3]
[385376451,1757799042032,-611.99,0.00024657,3]
[385376452,1757799042041,-707.98,0.00024657,3]
[385376453,1757799042051,-697.4,0.00024657,3]
[385376454,1757799042061,-4386.87,0.00024657,3]
[385376455,1757799042070,-480.0,0.00024657,3]
[385376456,1757799042079,-1894.27,0.00024657,3]
[385376457,1757799042088,-480.0,0.00024657,3]
[385376458,1757799042097,-480.0,0.00024657,3]
[385376459,1757799042107,-9104.08,0.00024657,3]
[385376460,1757799042116,-480.0,0.00024657,3]
[385376461,1757799042125,-1262.22,0.00024657,3]
[385376462,1757799042135,-1694.58,0.00024657,3]
[385376463,1757799042143,-480.0,0.00024657,3]
[385376464,1757799042153,-480.0,0.00024657,3]
[385376465,1757799042162,-480.0,0.00024657,3]
[385376466,1757799042171,-3634.98,0.00024657,3]
[385376467,1757799042181,-480.0,0.00024657,3]
[385376468,1757799042190,-4328.22,0.00024657,3]
[385376469,1757799042199,-484.57100462,0.00024657,3]
[385376470,1757799042208,-1693.18,0.00024657,3]
[385376471,1757799042218,-619.43,0.00024657,3]
[385376472,1757799042227,-480.0,0.00024657,3]
[385376473,1757799042236,-2990.36,0.00024657,3]
[385376474,1757799042245,-574.72,0.00024657,3]
[385376475,1757799042254,-480.0,0.00024657,3]
[385376476,1757799042263,-8874.14,0.00024657,3]
[385376477,1757799042273,-6319.53,0.00024657,3]
[385376478,1757799042282,-480.0,0.00024657,3]
[385376479,1757799042292,-480.0,0.00024657,3]
[385376480,1757799042301,-1236.82,0.00024657,3]
[385376481,1757799042310,-480.0,0.00024657,3]
[385376482,1757799042319,-1789.68,0.00024657,3]
[385376483,1757799042329,-618.18,0.00024657,3]
[385376484,1757799042338,-502.67,0.00024657,3]
[385376485,1757799042348,-559.15,0.00024657,3]
[385376486,1757799042357,-724.31,0.00024657,3]
[385376487,1757799042366,-480.0,0.00024657,3]
[385376488,1757799042375,-527.03,0.00024657,3]
[385376489,1757799042384,-570.79,0.00024657,3]
[385376490,1757799042394,-564.06,0.00024657,3]
[385376491,1757799042403,-480.0,0.00024657,3]
[385376492,1757799042412,-480.0,0.00024657,3]
[385376493,1757799042422,-480.0,0.00024657,3]
[385376494,1757799042431,-5219.66,0.00024657,3]
[385376495,1757799042441,-151.0,0.00024657,7]
[385376496,1757799042450,-480.0,0.00024657,3]
[385376497,1757799042459,-480.0,0.00024657,3]
[385376498,1757799042469,-500.0,0.00024673,2]
[385376499,1757799042478,-500.39823134,0.00024673,2]
[385376500,1757799042487,-500.0,0.00024673,2]
[385376501,1757799042496,-882.1779939,0.00024673,2]
[385376502,1757799042505,-151.0,0.000247,9]
[385376503,1757799042514,-260.0,0.00024731,2]
[385376504,1757799042523,-330.81141905,0.00024746,2]
[385376505,1757799042532,-295.821047,0.0002479,2]
[385376506,1757799042541,-4487.74932347,0.00024831,2]
[385376507,1757799042550,-250.0,0.00024854,2]
[385376508,1757799042560,-2342.14949401,0.00024896,2]
[385376509,1757799042569,-151.0,0.000249,7]
[385376510,1757799042578,-151.0,0.000249,7]
[385376511,1757799042587,-151.0,0.000249,7]
[385376512,1757799042597,-151.0,0.000249,7]
[385376513,1757799042605,-152.411303,0.000249,7]
[385376514,1757799042614,-151.0,0.000249,7]
[385376515,1757799042623,-151.0,0.000249,7]
[385376517,1757799042633,-151.0,0.000249,7]
[385376518,1757799042642,-95723.80906833,0.000249,2]
[385376521,1757799043121,-412.11050403,0.000249,2]
[385376536,1757799046056,-3530.87,0.00024657,3]
[385376537,1757799046065,-153579.56323464,0.000249,2]
[385376538,1757799046075,-500.0,0.000249,2]
[385376539,1757799046084,-500.0,0.000249,2]
[385376540,1757799046094,-521.59368032,0.00024931,3]
[385376541,1757799046103,-480.0,0.00024931,3]
[385376542,1757799046112,-430.14399858,0.00024931,3]
[385376543,1757799046121,-480.0,0.00024931,3]
[385376544,1757799046130,-480.0,0.00024931,3]
[385376545,1757799046139,-480.0,0.00024931,3]
[385376546,1757799046148,-480.0,0.00024931,3]
[385376547,1757799046157,-480.0,0.00024931,3]
[385376548,1757799046166,-480.0,0.00024931,3]
[385376549,1757799046175,-498.62,0.00024931,3]
[385376550,1757799046185,-480.0,0.00024931,3]
[385376551,1757799046194,-480.0,0.00024931,3]
[385376552,1757799046203,-480.0,0.00024931,3]
[385376553,1757799046212,-480.0,0.00024931,3]
[385376554,1757799046221,-480.0,0.00024931,3]
[385376555,1757799046230,-480.0,0.00024931,3]
[385376556,1757799046239,-621.73,0.00024931,3]
[385376557,1757799046248,-480.0,0.00024931,3]
[385376558,1757799046257,-480.0,0.00024931,3]
[385376559,1757799046266,-480.0,0.00024931,3]
[385376560,1757799046275,-480.0,0.00024931,3]
[385376561,1757799046284,-480.0,0.00024931,3]
[385376562,1757799046294,-480.0,0.00024931,3]
[385376563,1757799046303,-609.21,0.00024931,3]
[385376564,1757799046312,-239.37,0.00024931,3]
[385376565,1757799046321,-480.0,0.00024931,3]
[385376566,1757799046331,-916.5,0.00024931,3]
[385376567,1757799046340,-480.0,0.00024931,3]
[385376568,1757799046349,-480.0,0.00024931,3]
[385376569,1757799046358,-480.0,0.00024931,3]
[385376570,1757799046366,-480.0,0.00024931,3]
[385376571,1757799046376,-480.0,0.00024931,3]
[385376572,1757799046385,-550.2,0.00024931,3]
[385376573,1757799046394,-1877.13,0.00024931,3]
[385376574,1757799046403,-480.0,0.00024931,3]
[385376575,1757799046412,-591.04,0.00024931,3]
[385376576,1757799046422,-480.0,0.00024931,3]
[385376577,1757799046431,-648.58,0.00024931,3]
[385376578,1757799046440,-707.58,0.00024931,3]
[385376579,1757799046449,-1084.7,0.00024931,3]
[385376580,1757799046458,-716.41,0.00024931,3]
[385376581,1757799046467,-1256.05,0.00024931,3]
[385376582,1757799046476,-913.13,0.00024931,3]
[385376583,1757799046485,-480.0,0.00024931,3]
[385376584,1757799046495,-480.0,0.00024931,3]
[385376585,1757799046503,-811.26,0.00024931,3]
[385376586,1757799046513,-480.0,0.00024931,3]
[385376587,1757799046522,-480.0,0.00024931,3]
[385376588,1757799046531,-480.0,0.00024931,3]
[385376589,1757799046539,-480.0,0.00024931,3]
[385376590,1757799046548,-883.65,0.00024931,3]
[385376591,1757799046557,-480.0,0.00024931,3]
[385376592,1757799046567,-592.01,0.00024931,3]
[385376593,1757799046576,-1034.85,0.00024931,3]
[385376594,1757799046585,-480.0,0.00024931,3]
[385376595,1757799046594,-708.68,0.00024931,3]
[385376596,1757799046603,-480.0,0.00024931,3]
[385376597,1757799046612,-480.0,0.00024931,3]
[385376598,1757799046621,-480.0,0.00024931,3]
[385376599,1757799046630,-627.74,0.00024931,3]
[385376600,1757799046640,-480.0,0.00024931,3]
[385376601,1757799046649,-524.36,0.00024931,3]
[385376602,1757799046658,-951.66,0.00024931,3]
[385376603,1757799046667,-480.0,0.00024931,3]
[385376604,1757799046676,-480.0,0.00024931,3]
[385376605,1757799046686,-480.0,0.00024931,3]
[385376606,1757799046695,-874.55,0.00024931,3]
[385376607,1757799046704,-480.0,0.00024931,3]
[385376608,1757799046713,-1492.58,0.00024931,3]
[385376609,1757799046722,-638.13,0.00024931,3]
[385376610,1757799046731,-921.36,0.00024931,3]
[385376611,1757799046739,-480.0,0.00024931,3]
[385376612,1757799046749,-480.0,0.00024931,3]
[385376613,1757799046758,-480.0,0.00024931,3]
[385376614,1757799046767,-480.0,0.00024931,3]
[385376615,1757799046777,-480.0,0.00024931,3]
[385376616,1757799046786,-790.01,0.00024931,3]
[385376617,1757799046795,-970.76,0.00024931,3]
[385376618,1757799046804,-510.17,0.00024931,3]
[385376619,1757799046813,-328.03690357,0.00024931,3]
[385376620,1757799046822,-524.95,0.00024931,3]
[385376621,1757799046832,-480.0,0.00024931,3]
[385376622,1757799046841,-480.0,0.00024931,3]
[385376623,1757799046850,-480.0,0.00024931,3]
[385376624,1757799046859,-1205.83,0.00024931,3]
[385376625,1757799046868,-480.0,0.00024931,3]
[385376626,1757799046879,-480.0,0.00024931,3]
[385376627,1757799046889,-480.0,0.00024931,3]
[385376628,1757799046900,-480.0,0.00024931,3]
[385376629,1757799046913,-480.0,0.00024931,3]
[385376630,1757799046923,-480.0,0.00024931,3]
[385376631,1757799046933,-480.0,0.00024931,3]
[385376632,1757799046943,-480.0,0.00024931,3]
[385376633,1757799046952,-480.0,0.00024931,3]
[385376634,1757799046961,-499.83,0.00024931,3]
[385376635,1757799046970,-480.0,0.00024931,3]
[385376636,1757799046980,-480.0,0.00024931,3]
[385376637,1757799046989,-1438.98,0.00024931,3]
[385376638,1757799046998,-559.49,0.00024931,3]
[385376639,1757799047008,-480.0,0.00024931,3]
[385376640,1757799047017,-484.0,0.00024931,3]
[385376641,1757799047026,-480.0,0.00024931,3]
[385376642,1757799047035,-480.0,0.00024931,3]
[385376643,1757799047045,-480.0,0.00024931,3]
[385376644,1757799047055,-576.11,0.00024931,3]
[385376645,1757799047064,-480.0,0.00024931,3]
[385376646,1757799047073,-1291.68,0.00024931,3]
[385376647,1757799047083,-200.0,0.00024931,3]
[385376648,1757799047092,-480.0,0.00024931,3]
[385376649,1757799047101,-480.0,0.00024931,3]
[385376650,1757799047110,-480.0,0.00024931,3]
[385376651,1757799047119,-504.40607977,0.00024931,3]
[385376652,1757799047128,-480.0,0.00024931,3]
[385376653,1757799047138,-706.82,0.00024931,3]
[385376654,1757799047147,-885.71,0.00024931,3]
[385376655,1757799047156,-782.29,0.00024931,3]
[385376656,1757799047166,-480.0,0.00024931,3]
[385376657,1757799047175,-636.14,0.00024931,3]
[385376658,1757799047185,-982.25,0.00024931,3]
[385376659,1757799047195,-480.0,0.00024931,3]
[385376660,1757799047205,-800.82,0.00024931,3]
[385376661,1757799047214,-618.83,0.00024931,3]
[385376662,1757799047223,-602.44,0.00024931,3]
[385376663,1757799047232,-480.0,0.00024931,3]
[385376664,1757799047242,-1017.82,0.00024931,3]
[385376665,1757799047251,-1033.79,0.00024931,3]
[385376666,1757799047260,-166.3,0.00024931,3]
[385376667,1757799047270,-587.22,0.00024931,3]
[385376668,1757799047279,-531.88,0.00024931,3]
[385376669,1757799047289,-17712.84,0.00024931,3]
[385376670,1757799047298,-1730.52,0.00024931,3]
[385376671,1757799047307,-480.0,0.00024931,3]
[385376672,1757799047316,-1113.91,0.00024931,3]
[385376673,1757799047325,-480.0,0.00024931,3]
[385376674,1757799047335,-2925.91,0.00024931,3]
[385376675,1757799047344,-1728.19,0.00024931,3]
[385376676,1757799047354,-4111.02,0.00024931,3]
[385376677,1757799047363,-480.0,0.00024931,3]
[385376678,1757799047372,-1054.15,0.00024931,3]
[385376679,1757799047382,-480.0,0.00024931,3]
[385376680,1757799047391,-1032.78,0.00024931,3]
[385376681,1757799047400,-665.85,0.00024931,3]
[385376682,1757799047409,-1419.7,0.00024931,3]
[385376683,1757799047419,-480.0,0.00024931,3]
[385376684,1757799047428,-480.0,0.00024931,3]
[385376685,1757799047438,-5886.03,0.00024931,3]
[385376686,1757799047447,-1156.29,0.00024931,3]
[385376687,1757799047457,-601.63,0.00024931,3]
[385376688,1757799047466,-1956.61,0.00024931,3]
[385376689,1757799047476,-1273.7,0.00024931,3]
[385376690,1757799047485,-480.0,0.00024931,3]
[385376691,1757799047494,-597.0,0.00024931,3]
[385376692,1757799047503,-480.0,0.00024931,3]
[385376693,1757799047512,-491.29,0.00024931,3]
[385376694,1757799047521,-480.0,0.00024931,3]
[385376695,1757799047530,-480.0,0.00024931,3]
[385376696,1757799047540,-54.13807112,0.00024931,3]
[385376758,1757800232340,-300.0,0.00019899,2]
[385376760,1757800232351,-674.48453401,0.000199,2]
[385376768,1757800232415,-20455.32139838,0.000199,2]
[385376770,1757800232426,-1951.79124525,0.000199,2]
[385376774,1757800232437,-300.0,0.00020297,20]
[385376778,1757800232448,-300.0,0.00020297,20]
[385376781,1757800232460,-300.0,0.00020297,20]
[385376784,1757800232470,-300.0,0.00020297,20]
[385376787,1757800232480,-300.0,0.00020297,20]
[385376791,1757800232491,-300.0,0.00020297,20]
[385376794,1757800232502,-300.0,0.00020297,20]
[385376798,1757800232514,-300.0,0.00020297,20]
[385376801,1757800232524,-300.0,0.00020297,20]
[385376804,1757800232535,-300.0,0.00020297,20]
[385376808,1757800232545,-300.0,0.00020297,20]
[385376811,1757800232556,-300.0,0.00020297,20]
[385376814,1757800232567,-300.0,0.00020297,20]
[385376818,1757800232578,-300.0,0.00020297,20]
[385376820,1757800232588,-300.0,0.00020297,20]
[385376822,1757800232599,-600.0,0.00020702,20]
[385376824,1757800232609,-1951.791245,0.00021149,2]
[385376826,1757800232621,-177.264716,0.00021292,2]
[385376828,1757800232631,-172.974446,0.00021501,2]
[385376831,1757800232642,-420.0,0.0002167,2]
[385376833,1757800232652,-500.0,0.00021684,2]
[385376835,1757800232663,-5023.8987818,0.00022193,2]
[385376837,1757800232674,-1951.791245,0.00022398,2]
[385376839,1757800232684,-720.0,0.00022772,20]
[385376841,1757800232696,-37573.58783513,0.0002279,2]
[385376843,1757800232707,-500.0,0.00022825,2]
[385376845,1757800232718,-587.0,0.00023599,2]
[385376848,1757800232729,-1951.791245,0.00023647,2]
[385376850,1757800232739,-168.0,0.00023823,2]
[385376852,1757800232750,-500.0,0.00023966,2]
[385376854,1757800232762,-1278.0,0.0002415,2]
[385376856,1757800232772,-230.54045141,0.00024157,2]
[385376858,1757800232783,-233.1568031,0.00024167,2]
[385376861,1757800232794,-160.0,0.00024167,2]
[385376863,1757800232806,-160.0,0.00024167,2]
[385376865,1757800232816,-160.0,0.00024167,2]
[385376867,1757800232827,-168.0,0.00024175,2]
[385376869,1757800232838,-168.0,0.00024398,2]
[385376872,1757800232848,-1278.0,0.00024443,2]
[385376874,1757800232860,-1060.76517538,0.00024534,12]
[385376876,1757800232871,-302.115,0.00024539,7]
[385376878,1757800232882,-2058.28371896,0.00024557,2]
[385376880,1757800232892,-1278.0,0.00024571,2]
[385376883,1757800232903,-500.0,0.00024656,2]
[385376885,1757800232913,-480.0,0.00024657,3]
[385376887,1757800232924,-480.0,0.00024657,3]
[385376889,1757800232935,-480.0,0.00024657,3]
[385376891,1757800232946,-480.0,0.00024657,3]
[385376893,1757800232957,-686.68,0.00024657,3]
[385376895,1757800232968,-538.29,0.00024657,3]
[385376897,1757800232978,-269.54339099,0.00024657,3]
[385376900,1757800232989,-594.53,0.00024657,3]
[385376902,1757800232999,-480.0,0.00024657,3]
[385376904,1757800233010,-480.0,0.00024657,3]
[385376905,1757800233022,-850.02,0.00024657,3]
[385376906,1757800233033,-689.62,0.00024657,3]
[385376907,1757800233044,-480.0,0.00024657,3]
[385376908,1757800233055,-480.0,0.00024657,3]
[385376909,1757800233066,-604.95,0.00024657,3]
[385376910,1757800233077,-480.0,0.00024657,3]
[385376911,1757800233088,-480.0,0.00024657,3]
[385376912,1757800233099,-480.0,0.00024657,3]
[385376913,1757800233111,-764.17,0.00024657,3]
[385376914,1757800233122,-480.0,0.00024657,3]
[385376915,1757800233132,-507.65,0.00024657,3]
[385376916,1757800233143,-480.0,0.00024657,3]
[385376917,1757800233153,-880.13,0.00024657,3]
[385376918,1757800233163,-480.0,0.00024657,3]
[385376919,1757800233172,-480.0,0.00024657,3]
[385376920,1757800233181,-552.86,0.00024657,3]
[385376921,1757800233191,-480.0,0.00024657,3]
[385376922,1757800233200,-377.00470649,0.00024657,3]
[385376923,1757800233212,-102.99529351,0.00024657,3]
[385376924,1757800233222,-211.58896719,0.00024657,3]
[385377305,1757800238107,-292.76103281,0.00024657,3]
[385377306,1757800238117,-457.10280709,0.00024657,3]
[385377307,1757800238163,-1214.67976761,0.00024657,3]
[385377308,1757800238174,-88.9174253,0.00024657,3]
[385377309,1757800238184,-411.0825747,0.00024657,3]
[385377310,1757800238195,-68.9174253,0.00024657,3]
[385377311,1757800238205,-592.23,0.00024657,3]
[385377312,1757800238215,-581.79,0.00024657,3]
[385377314,1757800238224,-688.62,0.00024657,3]
[385377315,1757800238233,-200.0,0.00024657,3]
[385377316,1757800238243,-1034.3,0.00024657,3]
[385377318,1757800238253,-757.1,0.00024657,3]
[385377319,1757800238263,-515.84,0.00024657,3]
[385377320,1757800238272,-877.04,0.00024657,3]
[385377321,1757800238282,-1191.38,0.00024657,3]
[385377322,1757800238292,-480.0,0.00024657,3]
[385377323,1757800238301,-480.0,0.00024657,3]
[385377324,1757800238310,-480.0,0.00024657,3]
[385377325,1757800238319,-783.66,0.00024657,3]
[385377326,1757800238329,-480.0,0.00024657,3]
[385377327,1757800238339,-480.0,0.00024657,3]
[385377328,1757800238348,-480.0,0.00024657,3]
[385377329,1757800238358,-433.54604035,0.00024657,3]
[385377330,1757800238368,-582.68,0.00024657,3]
[385377331,1757800238378,-365.07008964,0.00024657,3]
[385377332,1757800238398,-2033.52217936,0.00024657,3]
[385377337,1757800240300,-280.707731,0.00024657,3]
[385377338,1757800240310,-480.0,0.00024657,3]
[385377339,1757800240320,-480.0,0.00024657,3]
[385377340,1757800240330,-480.0,0.00024657,3]
[385377341,1757800240341,-480.0,0.00024657,3]
[385377342,1757800240351,-480.0,0.00024657,3]
[385377343,1757800240362,-575.42,0.00024657,3]
[385377344,1757800240371,-480.0,0.00024657,3]
[385377345,1757800240380,-480.0,0.00024657,3]
[385377346,1757800240389,-912.36,0.00024657,3]
[385377347,1757800240398,-480.0,0.00024657,3]
[385377348,1757800240407,-480.0,0.00024657,3]
[385377349,1757800240417,-480.0,0.00024657,3]
[385377350,1757800240426,-167.17637048,0.00024657,3]
[385377351,1757800240435,-455.57201186,0.00024657,3]
[385377352,1757800240445,-841.67,0.00024657,3]
[385377353,1757800240455,-480.0,0.00024657,3]
[385377354,1757800240464,-1408.2,0.00024657,3]
[385377355,1757800240473,-480.0,0.00024657,3]
[385377356,1757800240482,-480.0,0.00024657,3]
[385377357,1757800240492,-480.0,0.00024657,3]
[385377358,1757800240501,-884.58,0.00024657,3]
[385377359,1757800240511,-480.0,0.00024657,3]
[385377360,1757800240527,-480.0,0.00024657,3]
[385377361,1757800240536,-480.0,0.00024657,3]
[385377362,1757800240546,-480.0,0.00024657,3]
[385377363,1757800240555,-261.06011796,0.00024657,3]
[385377364,1757800240564,-889.86,0.00024657,3]
[385377365,1757800240573,-734.13,0.00024657,3]
[385377366,1757800240582,-480.0,0.00024657,3]
[385377367,1757800240591,-480.0,0.00024657,3]
[385377368,1757800240601,-481.2,0.00024657,3]
[385377369,1757800240610,-480.0,0.00024657,3]
[385377370,1757800240620,-1145.35,0.00024657,3]
[385377371,1757800240628,-480.0,0.00024657,3]
[385377372,1757800240637,-408.45154346,0.00024657,3]
[385377373,1757800240648,-480.0,0.00024657,3]
[385377374,1757800240657,-480.0,0.00024657,3]
[385377375,1757800240666,-480.0,0.00024657,3]
[385377376,1757800240676,-480.0,0.00024657,3]
[385377377,1757800240685,-480.0,0.00024657,3]
[385377378,1757800240694,-480.0,0.00024657,3]
[385377379,1757800240706,-480.0,0.00024657,3]
[385377380,1757800240716,-480.0,0.00024657,3]
[385377381,1757800240725,-480.0,0.00024657,3]
[385377382,1757800240735,-480.0,0.00024657,3]
[385377383,1757800240750,-480.0,0.00024657,3]
[385377384,1757800240759,-480.0,0.00024657,3]
[385377385,1757800240768,-1359.07,0.00024657,3]
[385377386,1757800240777,-480.0,0.00024657,3]
[385377387,1757800240787,-811.19,0.00024657,3]
[385377388,1757800240796,-528.1,0.00024657,3]
[385377389,1757800240805,-480.0,0.00024657,3]
[385377390,1757800240815,-228.8854151,0.00024657,3]
[385377391,1757800240825,-1264.04,0.00024657,3]
[385377392,1757800240834,-480.0,0.00024657,3]
[385377393,1757800240844,-480.0,0.00024657,3]
[385377394,1757800240853,-480.0,0.00024657,3]
[385377395,1757800240863,-480.0,0.00024657,3]
[385377396,1757800240872,-647.92,0.00024657,3]
[385377397,1757800240881,-480.0,0.00024657,3]
[385377398,1757800240890,-480.0,0.00024657,3]
[385377399,1757800240900,-623.12,0.00024657,3]
[385377400,1757800240909,-480.0,0.00024657,3]
[385377401,1757800240918,-3423.75,0.00024657,3]
[385377402,1757800240929,-480.0,0.00024657,3]
[385377403,1757800240938,-480.0,0.00024657,3]
[385377404,1757800240949,-774.08,0.00024657,3]
[385377405,1757800240959,-480.0,0.00024657,3]
[385377406,1757800240969,-851.9,0.00024657,3]
[385377407,1757800240978,-581.32,0.00024657,3]
[385377408,1757800240987,-940.39,0.00024657,3]
[385377409,1757800240996,-987.64,0.00024657,3]
[385377410,1757800241006,-480.0,0.00024657,3]
[385377411,1757800241016,-341.16781014,0.00024657,3]
[385377412,1757800241036,-138.83218986,0.00024657,3]
[385377413,1757800241045,-160.0,0.00024657,3]
[385377414,1757800241055,-347.71781014,0.00024657,3]
[385377435,1757800243610,-562.13887865,0.00024657,3]
[385377436,1757800243671,-63.14331121,0.00024657,3]
[385377437,1757800243680,-480.0,0.00024657,3]
[385377438,1757800243690,-138.73241449,0.00024657,3]
[385377439,1757800243725,-0.00509754,0.00024657,3]
[385377445,1757800246277,-388.82248797,0.00024657,3]
[385377448,1757800246287,-480.0,0.00024657,3]
[385377449,1757800246296,-268.40300103,0.00024657,3]
[385377450,1757800246307,-678.92998736,0.00024657,3]
[385377451,1757800246388,-15474.41701161,0.00024657,3]
[385377452,1757800246397,-480.0,0.00024657,3]
[385377453,1757800246406,-480.0,0.00024657,3]
[385377454,1757800246416,-480.0,0.00024657,3]
[385377455,1757800246425,-2722.08,0.00024657,3]
[385377456,1757800246434,-1624.17,0.00024657,3]
[385377457,1757800246443,-1021.09,0.00024657,3]
[385377458,1757800246452,-1626.31,0.00024657,3]
[385377459,1757800246462,-480.0,0.00024657,3]
[385377460,1757800246618,-986.71,0.00024657,3]
[385377461,1757800246628,-480.0,0.00024657,3]
[385377462,1757800246637,-1006.31,0.00024657,3]
[385377463,1757800246646,-3808.43,0.00024657,3]
[385377464,1757800246656,-1207.56,0.00024657,3]
[385377465,1757800246665,-610.36,0.00024657,3]
[385377466,1757800246674,-551.49,0.00024657,3]
[385377467,1757800246684,-5439.63,0.00024657,3]
[385377468,1757800246694,-480.0,0.00024657,3]
[385377469,1757800246708,-480.0,0.00024657,3]
[385377470,1757800246717,-1341.39,0.00024657,3]
[385377471,1757800246728,-1833.56,0.00024657,3]
[385377472,1757800246737,-480.0,0.00024657,3]
[385377473,1757800246746,-1017.59,0.00024657,3]
[385377474,1757800246755,-1099.94,0.00024657,3]
[385377475,1757800246765,-480.0,0.00024657,3]
[385377476,1757800246774,-480.0,0.00024657,3]
[385377477,1757800246783,-2000.3,0.00024657,3]
[385377478,1757800246792,-480.0,0.00024657,3]
[385377479,1757800246802,-547.25,0.00024657,3]
[385377480,1757800246811,-2721.08,0.00024657,3]
[385377481,1757800246819,-480.0,0.00024657,3]
[385377482,1757800246829,-480.11,0.00024657,3]
[385377483,1757800246838,-718.48,0.00024657,3]
[385377484,1757800246847,-4135.05,0.00024657,3]
[385377485,1757800246856,-480.0,0.00024657,3]
[385377486,1757800246865,-608.6,0.00024657,3]
[385377487,1757800246875,-1474.89,0.00024657,3]
[385377488,1757800246884,-4224.09,0.00024657,3]
[385377489,1757800246893,-626.49,0.00024657,3]
[385377490,1757800246903,-10558.24964079,0.00024657,3]
[385377491,1757800246915,-25302.07035921,0.00024657,3]
[385377492,1757800246924,-480.0,0.00024657,3]
[385377493,1757800246933,-480.0,0.00024657,3]
[385377494,1757800246942,-480.0,0.00024657,3]
[385377495,1757800246952,-480.0,0.00024657,3]
[385377496,1757800246961,-1855.34,0.00024657,3]
[385377497,1757800246970,-668.34,0.00024657,3]
[385377498,1757800246979,-898.45,0.00024657,3]
[385377499,1757800246988,-589.45274079,0.00024657,3]
[385377500,1757800246999,-735.69725921,0.00024657,3]
[385377501,1757800247009,-633.62,0.00024657,3]
[385377502,1757800247018,-1209.63,0.00024657,3]
[385377503,1757800247027,-241.75551014,0.00024657,3]
[385377504,1757800247037,-480.0,0.00024657,3]
[385377505,1757800247046,-1663.98,0.00024657,3]
[385377506,1757800247056,-590.77,0.00024657,3]
[385377507,1757800247065,-8724.74,0.00024657,3]
[385377508,1757800247075,-3523.52,0.00024657,3]
[385377509,1757800247084,-4206.0,0.00024657,3]
[385377510,1757800247093,-1702.63,0.00024657,3]
[385377511,1757800247103,-6156.98,0.00024657,3]
[385377512,1757800247112,-480.0,0.00024657,3]
[385377513,1757800247122,-480.0,0.00024657,3]
[385377514,1757800247131,-521.72,0.00024657,3]
[385377515,1757800247140,-8679.18,0.00024657,3]
[385377516,1757800247150,-2905.76,0.00024657,3]
[385377517,1757800247159,-480.0,0.00024657,3]
[385377518,1757800247169,-1755.11,0.00024657,3]
[385377519,1757800247179,-480.0,0.00024657,3]
[385377520,1757800247188,-480.0,0.00024657,3]
[385377521,1757800247197,-505.07,0.00024657,3]
[385377522,1757800247206,-480.0,0.00024657,3]
[385377523,1757800247216,-632.42,0.00024657,3]
[385377524,1757800247225,-575.85,0.00024657,3]
[385377525,1757800247234,-1546.01,0.00024657,3]
[385377526,1757800247244,-480.0,0.00024657,3]